{"text_format":"3","workbook":"xlsx","n_sheets":5,"sheets":["Présentation de la fête","Liste d’invités","Nourriture Et Boissons","Autres Indispensables","Grille de plan de table"],"not_rendered":{"defined_names":9},"read":"whole","date_system":"1900"}

{"sheet":"Présentation de la fête","index":0,"n_rows":21,"n_cols":8,"rows_kept":21,"merged":[[6,3,6,4],[6,5,6,6],[9,1,9,2]]}
[]
[]
[null,"Présentation de la fête"]
[]
[]
[null,"ÉVÉNEMENT",null,"LISTE DES INVITÉS",{"$nulls":3},{"$f":"\"RSVP EN ATTENTE : \"&RSVPenAttente","v":"RSVP EN ATTENTE : 0"}]
[null,"Réveillon 2013",null,"VUE D’ENSEMBLE RSVP",null,"COÛT PAR INVITÉ",null,"MONTANT DU BUDGET"]
[{"$nulls":3},"Invités confirmés","Total confirmations","Produits alimentaires","Autre","Total"]
[null,"DATE",null,"Adultes",{"$f":"SUMIF(TableauInvités[PRÉSENT ?],\"=Oui\",TableauInvités[ADULTES])","v":30},{"$f":"TableauNourriture[[#Totals],[COÛT PAR ADULTE]]","v":{"v":11.35842972816657,"d":"11.36 €"}},{"$f":"CoûtEssentielParInvité","v":{"v":17.2,"d":"17.20 €"}},{"$f":"(SynthèsePrésents[[#This Row],[Produits alimentaires]]+SynthèsePrésents[[#This Row],[Autre]])*TotalAdultes","v":{"v":856.7528918449971,"d":"856.75 €"}}]
[null,"31 décembre 2013",null,"Enfants",{"$f":"SUMIF(TableauInvités[PRÉSENT ?],\"=Oui\",TableauInvités[ENFANTS])","v":20},{"$f":"TableauNourriture[[#Totals],[COÛT PAR ENFANT]]","v":{"v":6.712355407750145,"d":"6.71 €"}},{"$f":"CoûtEssentielParInvité","v":{"v":17.2,"d":"17.20 €"}},{"$f":"(SynthèsePrésents[[#This Row],[Produits alimentaires]]+SynthèsePrésents[[#This Row],[Autre]])*TotalEnfants","v":{"v":478.2471081550029,"d":"478.25 €"}}]
[{"$nulls":3},"Total",{"$f":"SUBTOTAL(109,SynthèsePrésents[Total confirmations])","v":50},{"$f":"\"Moy.     \"&TEXT(SUBTOTAL(101,SynthèsePrésents[Produits alimentaires]),\"#,## €\")","v":"Moy.     9 €"},{"$f":"\"Moy.     \"&TEXT(SUBTOTAL(101,SynthèsePrésents[Autre]),\"#,## €\")","v":"Moy.     17 €"},{"$f":"SUBTOTAL(109,SynthèsePrésents[Total])","v":{"v":1335,"d":"1,335.00 €"}}]
[null,"HEURE"]
[null,"20:00 - 04:00"]
[]
[null,"LIEU",null,"RÉCAPITULATIF DU BUDGET"]
[null,"Chez Nicolas",null,"ÉLÉMENT","NB","MONTANT DU BUDGET","COÛT TOTAL","DIFFÉRENCE"]
[{"$nulls":3},"Nourriture et boissons",{"$f":"COUNTA(TableauNourriture[ÉLÉMENT NOURRITURE OU BOISSON])","v":18},{"v":500,"d":"500.00 €"},{"$f":"TableauNourriture[[#Totals],[COÛT TOTAL]]","v":{"v":475,"d":"475.00 €"}},{"$f":"AperçuBudget[[#This Row],[MONTANT DU BUDGET]]-AperçuBudget[[#This Row],[COÛT TOTAL]]","v":{"v":25,"d":"25.00 €"}}]
[{"$nulls":3},{"$f":"En_têteTableau1","v":"Matériel et accessoires"},{"$f":"COUNTA(BudgetTableau1[Matériel et accessoires])","v":7},{"v":400,"d":"400.00 €"},{"$f":"BudgetTableau1[[#Totals],[Prix]]","v":{"v":400,"d":"400.00 €"}},{"$f":"AperçuBudget[[#This Row],[MONTANT DU BUDGET]]-AperçuBudget[[#This Row],[COÛT TOTAL]]","v":{"v":0,"d":"0.00 €"}}]
[{"$nulls":3},{"$f":"En_têteTableau2","v":"Décorations"},{"$f":"COUNTA(BudgetTableau2[Décorations])","v":4},{"v":150,"d":"150.00 €"},{"$f":"BudgetTableau2[[#Totals],[Prix]]","v":{"v":175,"d":"175.00 €"}},{"$f":"AperçuBudget[[#This Row],[MONTANT DU BUDGET]]-AperçuBudget[[#This Row],[COÛT TOTAL]]","v":{"v":-25,"d":"(25.00 €)"}}]
[{"$nulls":3},{"$f":"En_têteTableau3","v":"Autre"},{"$f":"COUNTA(BudgetTableau3[Autre])","v":4},{"v":300,"d":"300.00 €"},{"$f":"BudgetTableau3[[#Totals],[Prix]]","v":{"v":285,"d":"285.00 €"}},{"$f":"AperçuBudget[[#This Row],[MONTANT DU BUDGET]]-AperçuBudget[[#This Row],[COÛT TOTAL]]","v":{"v":15,"d":"15.00 €"}}]
[{"$nulls":3},"Total",{"$f":"SUBTOTAL(109,AperçuBudget[NB])","v":33},{"$f":"SUBTOTAL(109,AperçuBudget[MONTANT DU BUDGET])","v":{"v":1350,"d":"1,350.00 €"}},{"$f":"SUBTOTAL(109,AperçuBudget[COÛT TOTAL])","v":{"v":1335,"d":"1,335.00 €"}},{"$f":"AperçuBudget[[#Totals],[MONTANT DU BUDGET]]-AperçuBudget[[#Totals],[COÛT TOTAL]]","v":{"v":15,"d":"15.00 €"}}]

{"sheet":"Liste d’invités","index":1,"n_rows":22,"n_cols":12,"rows_kept":22}
[]
[]
[null,"Liste des invités"]
[]
[]
[]
[null,"NOM","ADRESSE","VILLE","PAYS","CODE POSTAL","TÉLÉPHONE","ADRESSE DE MESSAGERIE","PRÉSENT ?","ENFANTS","ADULTES","TOTAL"]
[null,"Famille 1","Adresse 1","Ville 1","Département 1","Code postal 1","Téléphone 1","Adresse de messagerie 1","Non",2,2,{"$f":"SUM(TableauInvités[[#This Row],[ENFANTS]:[ADULTES]])","v":4}]
[null,"Famille 2","Adresse 2","Ville 2","Département 2","Code postal 2","Téléphone 2","Adresse de messagerie 2","Oui",1,1,{"$f":"SUM(TableauInvités[[#This Row],[ENFANTS]:[ADULTES]])","v":2}]
[null,"Famille 3","Adresse 3","Ville 3","Département 3","Code postal 3","Téléphone 3","Adresse de messagerie 3","Oui",3,3,{"$f":"SUM(TableauInvités[[#This Row],[ENFANTS]:[ADULTES]])","v":6}]
[null,"Famille 4","Adresse 4","Ville 4","Département 4","Code postal 4","Téléphone 4","Adresse de messagerie 4","Oui",null,2,{"$f":"SUM(TableauInvités[[#This Row],[ENFANTS]:[ADULTES]])","v":2}]
[null,"Famille 5","Adresse 5","Ville 5","Département 5","Code postal 5","Téléphone 5","Adresse de messagerie 5","Oui",4,3,{"$f":"SUM(TableauInvités[[#This Row],[ENFANTS]:[ADULTES]])","v":7}]
[null,"Famille 6","Adresse 6","Ville 6","Département 6","Code postal 6","Téléphone 6","Adresse de messagerie 6","Oui",2,2,{"$f":"SUM(TableauInvités[[#This Row],[ENFANTS]:[ADULTES]])","v":4}]
[null,"Famille 7","Adresse 7","Ville 7","Département 7","Code postal 7","Téléphone 7","Adresse de messagerie 7","Oui",1,4,{"$f":"SUM(TableauInvités[[#This Row],[ENFANTS]:[ADULTES]])","v":5}]
[null,"Famille 8","Adresse 8","Ville 8","Département 8","Code postal 8","Téléphone 8","Adresse de messagerie 8","Non",5,3,{"$f":"SUM(TableauInvités[[#This Row],[ENFANTS]:[ADULTES]])","v":8}]
[null,"Famille 9","Adresse 9","Ville 9","Département 9","Code postal 9","Téléphone 9","Adresse de messagerie 9","Oui",3,2,{"$f":"SUM(TableauInvités[[#This Row],[ENFANTS]:[ADULTES]])","v":5}]
[null,"Famille 10","Adresse 10","Ville 10","Département 10","Code postal 10","Téléphone 10","Adresse de messagerie 10","Oui",null,4,{"$f":"SUM(TableauInvités[[#This Row],[ENFANTS]:[ADULTES]])","v":4}]
[null,"Famille 11","Adresse 11","Ville 11","Département 11","Code postal 11","Téléphone 11","Adresse de messagerie 11","Oui",3,5,{"$f":"SUM(TableauInvités[[#This Row],[ENFANTS]:[ADULTES]])","v":8}]
[null,"Famille 12","Adresse 12","Ville 12","Département 12","Code postal 12","Téléphone 12","Adresse de messagerie 12","Non",2,3,{"$f":"SUM(TableauInvités[[#This Row],[ENFANTS]:[ADULTES]])","v":5}]
[null,"Famille 13","Adresse 13","Ville 13","Département 13","Code postal 13","Téléphone 13","Adresse de messagerie 13","Oui",3,2,{"$f":"SUM(TableauInvités[[#This Row],[ENFANTS]:[ADULTES]])","v":5}]
[null,"Famille 14","Adresse 14","Ville 14","Département 14","Code postal 14","Téléphone 14","Adresse de messagerie 14","Non",null,1,{"$f":"SUM(TableauInvités[[#This Row],[ENFANTS]:[ADULTES]])","v":1}]
[null,"Famille 15","Adresse 15","Ville 15","Département 15","Code postal 15","Téléphone 15","Adresse de messagerie 15","Oui",null,2,{"$f":"SUM(TableauInvités[[#This Row],[ENFANTS]:[ADULTES]])","v":2}]

{"sheet":"Nourriture Et Boissons","index":2,"n_rows":25,"n_cols":10,"rows_kept":25}
[]
[]
[null,"Nourriture et boissons"]
[]
[null,"Entrez le coût et le nombre de parts estimé pour calculer automatiquement le nombre de pièces et le coût par personne en fonction du nombre total de personnes"]
[null,"ÉLÉMENT NOURRITURE OU BOISSON","COÛT TOTAL","PORTION PAR ENFANT","PORTION PAR ADULTE","TOTAL PORTIONS","COÛT PAR PORTION","COÛT PAR ENFANT","COÛT PAR ADULTE","REMARQUES"]
[null,"Soda",{"v":15,"d":"15.00 €"},0.5,2,{"$f":"(TableauNourriture[[#This Row],[PORTION PAR ENFANT]]*TotalEnfants)+(TableauNourriture[[#This Row],[PORTION PAR ADULTE]]*TotalAdultes)","v":70},{"$f":"IFERROR(TableauNourriture[[#This Row],[COÛT TOTAL]]/TableauNourriture[[#This Row],[TOTAL PORTIONS]],\"\")","v":{"v":0.21428571428571427,"d":"0.21 €"}},{"$f":"IFERROR(TableauNourriture[[#This Row],[COÛT PAR PORTION]]*TableauNourriture[[#This Row],[PORTION PAR ENFANT]],\"\")","v":{"v":0.10714285714285714,"d":"0.11 €"}},{"$f":"IFERROR(TableauNourriture[[#This Row],[COÛT PAR PORTION]]*TableauNourriture[[#This Row],[PORTION PAR ADULTE]],\"\")","v":{"v":0.42857142857142855,"d":"0.43 €"}},"Bouteilles de 2 litres"]
[null,"Briques de jus d’orange",{"v":15,"d":"15.00 €"},2,0,{"$f":"(TableauNourriture[[#This Row],[PORTION PAR ENFANT]]*TotalEnfants)+(TableauNourriture[[#This Row],[PORTION PAR ADULTE]]*TotalAdultes)","v":40},{"$f":"IFERROR(TableauNourriture[[#This Row],[COÛT TOTAL]]/TableauNourriture[[#This Row],[TOTAL PORTIONS]],\"\")","v":{"v":0.375,"d":"0.38 €"}},{"$f":"IFERROR(TableauNourriture[[#This Row],[COÛT PAR PORTION]]*TableauNourriture[[#This Row],[PORTION PAR ENFANT]],\"\")","v":{"v":0.75,"d":"0.75 €"}},{"$f":"IFERROR(TableauNourriture[[#This Row],[COÛT PAR PORTION]]*TableauNourriture[[#This Row],[PORTION PAR ADULTE]],\"\")","v":{"v":0,"d":"0.00 €"}},"Pommes et raisin blanc"]
[null,"Vin",{"v":50,"d":"50.00 €"},0,2,{"$f":"(TableauNourriture[[#This Row],[PORTION PAR ENFANT]]*TotalEnfants)+(TableauNourriture[[#This Row],[PORTION PAR ADULTE]]*TotalAdultes)","v":60},{"$f":"IFERROR(TableauNourriture[[#This Row],[COÛT TOTAL]]/TableauNourriture[[#This Row],[TOTAL PORTIONS]],\"\")","v":{"v":0.8333333333333334,"d":"0.83 €"}},{"$f":"IFERROR(TableauNourriture[[#This Row],[COÛT PAR PORTION]]*TableauNourriture[[#This Row],[PORTION PAR ENFANT]],\"\")","v":{"v":0,"d":"0.00 €"}},{"$f":"IFERROR(TableauNourriture[[#This Row],[COÛT PAR PORTION]]*TableauNourriture[[#This Row],[PORTION PAR ADULTE]],\"\")","v":{"v":1.6666666666666667,"d":"1.67 €"}}]
[null,"Gâteau",{"v":75,"d":"75.00 €"},1,1,{"$f":"(TableauNourriture[[#This Row],[PORTION PAR ENFANT]]*TotalEnfants)+(TableauNourriture[[#This Row],[PORTION PAR ADULTE]]*TotalAdultes)","v":50},{"$f":"IFERROR(TableauNourriture[[#This Row],[COÛT TOTAL]]/TableauNourriture[[#This Row],[TOTAL PORTIONS]],\"\")","v":{"v":1.5,"d":"1.50 €"}},{"$f":"IFERROR(TableauNourriture[[#This Row],[COÛT PAR PORTION]]*TableauNourriture[[#This Row],[PORTION PAR ENFANT]],\"\")","v":{"v":1.5,"d":"1.50 €"}},{"$f":"IFERROR(TableauNourriture[[#This Row],[COÛT PAR PORTION]]*TableauNourriture[[#This Row],[PORTION PAR ADULTE]],\"\")","v":{"v":1.5,"d":"1.50 €"}},"Commander à la boulangerie"]
[null,"Glace",{"v":20,"d":"20.00 €"},1,1.5,{"$f":"(TableauNourriture[[#This Row],[PORTION PAR ENFANT]]*TotalEnfants)+(TableauNourriture[[#This Row],[PORTION PAR ADULTE]]*TotalAdultes)","v":65},{"$f":"IFERROR(TableauNourriture[[#This Row],[COÛT TOTAL]]/TableauNourriture[[#This Row],[TOTAL PORTIONS]],\"\")","v":{"v":0.3076923076923077,"d":"0.31 €"}},{"$f":"IFERROR(TableauNourriture[[#This Row],[COÛT PAR PORTION]]*TableauNourriture[[#This Row],[PORTION PAR ENFANT]],\"\")","v":{"v":0.3076923076923077,"d":"0.31 €"}},{"$f":"IFERROR(TableauNourriture[[#This Row],[COÛT PAR PORTION]]*TableauNourriture[[#This Row],[PORTION PAR ADULTE]],\"\")","v":{"v":0.46153846153846156,"d":"0.46 €"}}]
[null,"Crème dessert",{"v":15,"d":"15.00 €"},1,0,{"$f":"(TableauNourriture[[#This Row],[PORTION PAR ENFANT]]*TotalEnfants)+(TableauNourriture[[#This Row],[PORTION PAR ADULTE]]*TotalAdultes)","v":20},{"$f":"IFERROR(TableauNourriture[[#This Row],[COÛT TOTAL]]/TableauNourriture[[#This Row],[TOTAL PORTIONS]],\"\")","v":{"v":0.75,"d":"0.75 €"}},{"$f":"IFERROR(TableauNourriture[[#This Row],[COÛT PAR PORTION]]*TableauNourriture[[#This Row],[PORTION PAR ENFANT]],\"\")","v":{"v":0.75,"d":"0.75 €"}},{"$f":"IFERROR(TableauNourriture[[#This Row],[COÛT PAR PORTION]]*TableauNourriture[[#This Row],[PORTION PAR ADULTE]],\"\")","v":{"v":0,"d":"0.00 €"}},"Acheter des tasses emballées : vanille et chocolat"]
[null,"Champignons farcis",{"v":32,"d":"32.00 €"},1,2,{"$f":"(TableauNourriture[[#This Row],[PORTION PAR ENFANT]]*TotalEnfants)+(TableauNourriture[[#This Row],[PORTION PAR ADULTE]]*TotalAdultes)","v":80},{"$f":"IFERROR(TableauNourriture[[#This Row],[COÛT TOTAL]]/TableauNourriture[[#This Row],[TOTAL PORTIONS]],\"\")","v":{"v":0.4,"d":"0.40 €"}},{"$f":"IFERROR(TableauNourriture[[#This Row],[COÛT PAR PORTION]]*TableauNourriture[[#This Row],[PORTION PAR ENFANT]],\"\")","v":{"v":0.4,"d":"0.40 €"}},{"$f":"IFERROR(TableauNourriture[[#This Row],[COÛT PAR PORTION]]*TableauNourriture[[#This Row],[PORTION PAR ADULTE]],\"\")","v":{"v":0.8,"d":"0.80 €"}},"Champignons de Paris farcis à la saucisse et au fromage frais"]
[null,"Bruschetta",{"v":22,"d":"22.00 €"},0,3,{"$f":"(TableauNourriture[[#This Row],[PORTION PAR ENFANT]]*TotalEnfants)+(TableauNourriture[[#This Row],[PORTION PAR ADULTE]]*TotalAdultes)","v":90},{"$f":"IFERROR(TableauNourriture[[#This Row],[COÛT TOTAL]]/TableauNourriture[[#This Row],[TOTAL PORTIONS]],\"\")","v":{"v":0.24444444444444444,"d":"0.24 €"}},{"$f":"IFERROR(TableauNourriture[[#This Row],[COÛT PAR PORTION]]*TableauNourriture[[#This Row],[PORTION PAR ENFANT]],\"\")","v":{"v":0,"d":"0.00 €"}},{"$f":"IFERROR(TableauNourriture[[#This Row],[COÛT PAR PORTION]]*TableauNourriture[[#This Row],[PORTION PAR ADULTE]],\"\")","v":{"v":0.7333333333333333,"d":"0.73 €"}},"Tomates et basilic "]
[null,"Saumon fumé",{"v":50,"d":"50.00 €"},1,2,{"$f":"(TableauNourriture[[#This Row],[PORTION PAR ENFANT]]*TotalEnfants)+(TableauNourriture[[#This Row],[PORTION PAR ADULTE]]*TotalAdultes)","v":80},{"$f":"IFERROR(TableauNourriture[[#This Row],[COÛT TOTAL]]/TableauNourriture[[#This Row],[TOTAL PORTIONS]],\"\")","v":{"v":0.625,"d":"0.63 €"}},{"$f":"IFERROR(TableauNourriture[[#This Row],[COÛT PAR PORTION]]*TableauNourriture[[#This Row],[PORTION PAR ENFANT]],\"\")","v":{"v":0.625,"d":"0.63 €"}},{"$f":"IFERROR(TableauNourriture[[#This Row],[COÛT PAR PORTION]]*TableauNourriture[[#This Row],[PORTION PAR ADULTE]],\"\")","v":{"v":1.25,"d":"1.25 €"}}]
[null,"Mini bagels",{"v":20,"d":"20.00 €"},1,2,{"$f":"(TableauNourriture[[#This Row],[PORTION PAR ENFANT]]*TotalEnfants)+(TableauNourriture[[#This Row],[PORTION PAR ADULTE]]*TotalAdultes)","v":80},{"$f":"IFERROR(TableauNourriture[[#This Row],[COÛT TOTAL]]/TableauNourriture[[#This Row],[TOTAL PORTIONS]],\"\")","v":{"v":0.25,"d":"0.25 €"}},{"$f":"IFERROR(TableauNourriture[[#This Row],[COÛT PAR PORTION]]*TableauNourriture[[#This Row],[PORTION PAR ENFANT]],\"\")","v":{"v":0.25,"d":"0.25 €"}},{"$f":"IFERROR(TableauNourriture[[#This Row],[COÛT PAR PORTION]]*TableauNourriture[[#This Row],[PORTION PAR ADULTE]],\"\")","v":{"v":0.5,"d":"0.50 €"}},"4 sachets - assortis"]
[null,"Fromage frais",{"v":10,"d":"10.00 €"},1,2,{"$f":"(TableauNourriture[[#This Row],[PORTION PAR ENFANT]]*TotalEnfants)+(TableauNourriture[[#This Row],[PORTION PAR ADULTE]]*TotalAdultes)","v":80},{"$f":"IFERROR(TableauNourriture[[#This Row],[COÛT TOTAL]]/TableauNourriture[[#This Row],[TOTAL PORTIONS]],\"\")","v":{"v":0.125,"d":"0.13 €"}},{"$f":"IFERROR(TableauNourriture[[#This Row],[COÛT PAR PORTION]]*TableauNourriture[[#This Row],[PORTION PAR ENFANT]],\"\")","v":{"v":0.125,"d":"0.13 €"}},{"$f":"IFERROR(TableauNourriture[[#This Row],[COÛT PAR PORTION]]*TableauNourriture[[#This Row],[PORTION PAR ADULTE]],\"\")","v":{"v":0.25,"d":"0.25 €"}},"2 gros tubes"]
[null,"Câpres",{"v":12,"d":"12.00 €"},1,2,{"$f":"(TableauNourriture[[#This Row],[PORTION PAR ENFANT]]*TotalEnfants)+(TableauNourriture[[#This Row],[PORTION PAR ADULTE]]*TotalAdultes)","v":80},{"$f":"IFERROR(TableauNourriture[[#This Row],[COÛT TOTAL]]/TableauNourriture[[#This Row],[TOTAL PORTIONS]],\"\")","v":{"v":0.15,"d":"0.15 €"}},{"$f":"IFERROR(TableauNourriture[[#This Row],[COÛT PAR PORTION]]*TableauNourriture[[#This Row],[PORTION PAR ENFANT]],\"\")","v":{"v":0.15,"d":"0.15 €"}},{"$f":"IFERROR(TableauNourriture[[#This Row],[COÛT PAR PORTION]]*TableauNourriture[[#This Row],[PORTION PAR ADULTE]],\"\")","v":{"v":0.3,"d":"0.30 €"}},"3 pots"]
[null,"Ailes de poulet",{"v":45,"d":"45.00 €"},2,4,{"$f":"(TableauNourriture[[#This Row],[PORTION PAR ENFANT]]*TotalEnfants)+(TableauNourriture[[#This Row],[PORTION PAR ADULTE]]*TotalAdultes)","v":160},{"$f":"IFERROR(TableauNourriture[[#This Row],[COÛT TOTAL]]/TableauNourriture[[#This Row],[TOTAL PORTIONS]],\"\")","v":{"v":0.28125,"d":"0.28 €"}},{"$f":"IFERROR(TableauNourriture[[#This Row],[COÛT PAR PORTION]]*TableauNourriture[[#This Row],[PORTION PAR ENFANT]],\"\")","v":{"v":0.5625,"d":"0.56 €"}},{"$f":"IFERROR(TableauNourriture[[#This Row],[COÛT PAR PORTION]]*TableauNourriture[[#This Row],[PORTION PAR ADULTE]],\"\")","v":{"v":1.125,"d":"1.13 €"}},"Acheter chez le traiteur"]
[null,"Houmous",{"v":10,"d":"10.00 €"},4,6,{"$f":"(TableauNourriture[[#This Row],[PORTION PAR ENFANT]]*TotalEnfants)+(TableauNourriture[[#This Row],[PORTION PAR ADULTE]]*TotalAdultes)","v":260},{"$f":"IFERROR(TableauNourriture[[#This Row],[COÛT TOTAL]]/TableauNourriture[[#This Row],[TOTAL PORTIONS]],\"\")","v":{"v":0.038461538461538464,"d":"0.04 €"}},{"$f":"IFERROR(TableauNourriture[[#This Row],[COÛT PAR PORTION]]*TableauNourriture[[#This Row],[PORTION PAR ENFANT]],\"\")","v":{"v":0.15384615384615385,"d":"0.15 €"}},{"$f":"IFERROR(TableauNourriture[[#This Row],[COÛT PAR PORTION]]*TableauNourriture[[#This Row],[PORTION PAR ADULTE]],\"\")","v":{"v":0.23076923076923078,"d":"0.23 €"}},"Préparer la veille"]
[null,"Chips de pita au parmesan",{"v":14,"d":"14.00 €"},4,6,{"$f":"(TableauNourriture[[#This Row],[PORTION PAR ENFANT]]*TotalEnfants)+(TableauNourriture[[#This Row],[PORTION PAR ADULTE]]*TotalAdultes)","v":260},{"$f":"IFERROR(TableauNourriture[[#This Row],[COÛT TOTAL]]/TableauNourriture[[#This Row],[TOTAL PORTIONS]],\"\")","v":{"v":0.05384615384615385,"d":"0.05 €"}},{"$f":"IFERROR(TableauNourriture[[#This Row],[COÛT PAR PORTION]]*TableauNourriture[[#This Row],[PORTION PAR ENFANT]],\"\")","v":{"v":0.2153846153846154,"d":"0.22 €"}},{"$f":"IFERROR(TableauNourriture[[#This Row],[COÛT PAR PORTION]]*TableauNourriture[[#This Row],[PORTION PAR ADULTE]],\"\")","v":{"v":0.3230769230769231,"d":"0.32 €"}},"Préparer la veille"]
[null,"Légumes variés",{"v":30,"d":"30.00 €"},4,10,{"$f":"(TableauNourriture[[#This Row],[PORTION PAR ENFANT]]*TotalEnfants)+(TableauNourriture[[#This Row],[PORTION PAR ADULTE]]*TotalAdultes)","v":380},{"$f":"IFERROR(TableauNourriture[[#This Row],[COÛT TOTAL]]/TableauNourriture[[#This Row],[TOTAL PORTIONS]],\"\")","v":{"v":0.07894736842105263,"d":"0.08 €"}},{"$f":"IFERROR(TableauNourriture[[#This Row],[COÛT PAR PORTION]]*TableauNourriture[[#This Row],[PORTION PAR ENFANT]],\"\")","v":{"v":0.3157894736842105,"d":"0.32 €"}},{"$f":"IFERROR(TableauNourriture[[#This Row],[COÛT PAR PORTION]]*TableauNourriture[[#This Row],[PORTION PAR ADULTE]],\"\")","v":{"v":0.7894736842105263,"d":"0.79 €"}},"Bâtonnets de carotte, céleri, brocolis, chou-fleur, poivrons rouges et verts"]
[null,"Billes de fromage",{"v":15,"d":"15.00 €"},5,10,{"$f":"(TableauNourriture[[#This Row],[PORTION PAR ENFANT]]*TotalEnfants)+(TableauNourriture[[#This Row],[PORTION PAR ADULTE]]*TotalAdultes)","v":400},{"$f":"IFERROR(TableauNourriture[[#This Row],[COÛT TOTAL]]/TableauNourriture[[#This Row],[TOTAL PORTIONS]],\"\")","v":{"v":0.0375,"d":"0.04 €"}},{"$f":"IFERROR(TableauNourriture[[#This Row],[COÛT PAR PORTION]]*TableauNourriture[[#This Row],[PORTION PAR ENFANT]],\"\")","v":{"v":0.1875,"d":"0.19 €"}},{"$f":"IFERROR(TableauNourriture[[#This Row],[COÛT PAR PORTION]]*TableauNourriture[[#This Row],[PORTION PAR ADULTE]],\"\")","v":{"v":0.375,"d":"0.38 €"}},"Assortiment : fromages frais, fromages secs et noix"]
[null,"Gâteaux apéritif",{"v":25,"d":"25.00 €"},5,10,{"$f":"(TableauNourriture[[#This Row],[PORTION PAR ENFANT]]*TotalEnfants)+(TableauNourriture[[#This Row],[PORTION PAR ADULTE]]*TotalAdultes)","v":400},{"$f":"IFERROR(TableauNourriture[[#This Row],[COÛT TOTAL]]/TableauNourriture[[#This Row],[TOTAL PORTIONS]],\"\")","v":{"v":0.0625,"d":"0.06 €"}},{"$f":"IFERROR(TableauNourriture[[#This Row],[COÛT PAR PORTION]]*TableauNourriture[[#This Row],[PORTION PAR ENFANT]],\"\")","v":{"v":0.3125,"d":"0.31 €"}},{"$f":"IFERROR(TableauNourriture[[#This Row],[COÛT PAR PORTION]]*TableauNourriture[[#This Row],[PORTION PAR ADULTE]],\"\")","v":{"v":0.625,"d":"0.63 €"}},"Assortiment"]
[null,"Total",{"$f":"SUBTOTAL(109,TableauNourriture[COÛT TOTAL])","v":{"v":475,"d":"475.00 €"}},{"$f":"SUBTOTAL(109,TableauNourriture[PORTION PAR ENFANT])","v":34.5},{"$f":"SUBTOTAL(109,TableauNourriture[PORTION PAR ADULTE])","v":65.5},{"$f":"SUBTOTAL(109,TableauNourriture[TOTAL PORTIONS])","v":2655},{"$f":"SUBTOTAL(109,TableauNourriture[COÛT PAR PORTION])","v":{"v":6.327260860484544,"d":"6.33 €"}},{"$f":"SUBTOTAL(109,TableauNourriture[COÛT PAR ENFANT])","v":{"v":6.712355407750145,"d":"6.71 €"}},{"$f":"SUBTOTAL(109,TableauNourriture[COÛT PAR ADULTE])","v":{"v":11.35842972816657,"d":"11.36 €"}}]

{"sheet":"Autres Indispensables","index":3,"n_rows":30,"n_cols":5,"rows_kept":30,"merged":[[14,1,14,4],[22,1,22,4]]}
[]
[]
[null,"Autres éléments indispensables"]
[]
[]
[null,"Matériel et accessoires","Prix","Acheté","Notes"]
[null,"Location de salle",{"v":250,"d":"250.00 €"},"Oui"]
[null,"Linge de maison",{"v":30,"d":"30.00 €"},"Oui","Location"]
[null,"Tables et chaises",{"v":0,"d":"0.00 €"},null,"Inclus dans la location de salle"]
[null,"Petites serviettes",{"v":25,"d":"25.00 €"}]
[null,"Serviettes de table",{"v":20,"d":"20.00 €"},null,"Location"]
[null,"Service de table",{"v":50,"d":"50.00 €"},null,"Location"]
[null,"Verres",{"v":25,"d":"25.00 €"},null,"Location"]
[null,"Total",{"$f":"SUBTOTAL(109,BudgetTableau1[Prix])","v":{"v":400,"d":"400.00 €"}}]
[]
[]
[null,"Décorations","Prix","Acheté","Notes"]
[null,"Ballons",{"v":25,"d":"25.00 €"}]
[null,"Bouteille d’hélium",{"v":50,"d":"50.00 €"},null,"Location"]
[null,"Accessoires de décoration de table",{"v":100,"d":"100.00 €"},"Oui","Total 10"]
[null,"Vases en verre",{"v":0,"d":"0.00 €"},null,"Emprunté à Sophie"]
[null,"Total",{"$f":"SUBTOTAL(109,BudgetTableau2[Prix])","v":{"v":175,"d":"175.00 €"}}]
[]
[]
[null,"Autre","Prix","Acheté","Notes"]
[null,"Invitations",{"v":50,"d":"50.00 €"},"Oui"]
[null,"Frais postaux",{"v":60,"d":"60.00 €"},"Oui"]
[null,"Photographe",{"v":125,"d":"125.00 €"},null,"2 heures (14:00 - 16:00)"]
[null,"Cadeaux de fête",{"v":50,"d":"50.00 €"}]
[null,"Total",{"$f":"SUBTOTAL(109,BudgetTableau3[Prix])","v":{"v":285,"d":"285.00 €"}}]

{"sheet":"Grille de plan de table","index":4,"n_rows":43,"n_cols":34,"rows_kept":43,"merged":[[35,0,35,17],[35,19,35,33]]}
["Plan de table"]
{"$rows_empty":33}
[{"$nulls":33},"*1 carré= environ 9 cm²"]
["Notes",{"$nulls":18},{"$f":"\" Total des invités confirmés : \"&InvitésConfirmés","v":" Total des invités confirmés : 50"}]
[{"$nulls":19},"Vous pouvez utiliser l’une de ces organisations de table :"]
[{"$nulls":20},{"$f":"ROUNDUP(InvitésConfirmés/6,0)&\" tables rondes de 1,35 m (6 places)\"","v":"9 tables rondes de 1,35 m (6 places)"}]
[{"$nulls":20},{"$f":"ROUNDUP(InvitésConfirmés/8,0) &\" tables rondes de 1,50 m (8 places)\"","v":"7 tables rondes de 1,50 m (8 places)"}]
[{"$nulls":20},{"$f":"ROUNDUP(InvitésConfirmés/10,0)&\" tables rondes de 1,50 m (10 places)\"","v":"5 tables rondes de 1,50 m (10 places)"}]
[{"$nulls":20},{"$f":"ROUNDUP(InvitésConfirmés/6,0)& \" tables rectangulaires de 0,75 m x 1,80 m (6 places)\"","v":"9 tables rectangulaires de 0,75 m x 1,80 m (6 places)"}]
[{"$nulls":20},{"$f":"ROUNDUP(InvitésConfirmés/8,0)&\" tables rectangulaires de 0,75 m x 2,40 m (8 places)\"","v":"7 tables rectangulaires de 0,75 m x 2,40 m (8 places)"}]
[{"$nulls":19},"(Espacement souhaité entre les tables : 1 m)"]